[Event "Centenario Panaderia Pulido 2023"]
[Site "San Mateo Gran Canaria"]
[Date "2023.12.06"]
[Round "4.11"]
[White "Rivero Castellano, Carlos Jesus"]
[Black "Medina Martin, Alberto"]
[Result "0-1"]
[ECO "D05"]
[WhiteElo "1726"]
[BlackElo "2105"]
[Annotator "RC"]
[PlyCount "106"]
[EventDate "2023.12.04"]
[EventType "swiss"]
[EventCountry "ESP"]
[SourceTitle "playchess.com"]
[Source "ChessBase"]
[SourceQuality "1"]
[TimeControl "5400+30"]

1. d4 {[%emt 0:00:05]} Nf6 {[%emt 0:00:12]} 2. Nf3 {[%emt 0:00:17]} e6 {[%emt 0:00:10]} 3. e3 {[%emt 0:00:17]} b6 {[%emt 0:00:19]} 4. Bd3 {[%emt 0:00:40]} Bb7 {[%emt 0:00:09]} 5. Nbd2 {[%emt 0:00:25]} d5 {[%emt 0:00:16]} 6. Qe2 {[%emt 0:00:44]} Ne4 {[%emt 0:00:37]} 7. O-O {[%emt 0:04:10]} Bd6 {[%emt 0:00:17]} 8. c4 {[%emt 0:04:47]} O-O {[%emt 0:00:56]} 9. Qd1 {[%emt 0:12:43]} f5 {[%emt 0:01:30]} 10. a3 {[%emt 0:13:38]} Nd7 {[%emt 0:01:19]} 11. b4 {[%emt 0:01:08]} c6 {[%emt 0:02:08]} 12. c5 {[%emt 0:01:22]} Bc7 {[%emt 0:00:11]} 13. Bb2 {[%emt 0:03:24]} Rf6 {[%emt 0:00:52]} 14. Ne5 {[%emt 0:02:04]} Nxe5 {[%emt 0:05:56]} 15. dxe5 {[%emt 0:00:16]} Rf7 {[%emt 0:00:27]} 16. Nb3 {[%emt 0:02:48]} bxc5 {[%emt 0:01:34]} 17. bxc5 {[%emt 0:00:16]} h6 {[%emt 0:01:27]} 18. f3 {[%emt 0:01:10]} Ng5 {[%emt 0:00:24]} 19. a4 {[%emt 0:02:47]} Qc8 {[%emt 0:01:11]} 20. h4 {[%emt 0:00:40]} Nh7 {[%emt 0:00:06]} 21. Qe2 {[%emt 0:00:36]} a5 {[%emt 0:11:56]} 22. f4 {[%emt 0:01:29]} Bd8 {[%emt 0:00:31]} 23. g3 {[%emt 0:01:38]} Ba6 {[%emt 0:01:30]} 24. Nd4 {[%emt 0:01:36]} Bxd3 {[%emt 0:00:51]} 25. Qxd3 {[%emt 0:00:12]} Rb7 {[%emt 0:00:30]} 26. Bc3 {[%emt 0:00:41]} Be7 {[%emt 0:00:15]} 27. Rab1 {[%emt 0:01:04]} Rxb1 {[%emt 0:00:17]} 28. Rxb1 {[%emt 0:00:08]} Bxc5 {[%emt 0:00:10]} 29. Qd2 {[%emt 0:02:41]} Bxd4 {[%emt 0:00:59]} 30. exd4 {[%emt 0:00:08]} Qa6 {[%emt 0:01:50]} 31. Qc2 {[%emt 0:10:12]} Nf8 {[%emt 0:00:40]} 32. Qb3 {[%emt 0:00:30]} Qd3 {[%emt 0:02:32]} 33. Ba1 {[%emt 0:00:35]} Qe2 {[%emt 0:02:31]} 34. Qb2 {[%emt 0:03:35]} Qe3+ {[%emt 0:09:20]} 35. Kh2 {[%emt 0:01:13]} Nd7 {[%emt 0:01:29]} 36. Qc3 {[%emt 0:04:25]} Qe2+ {[%emt 0:06:13]} 37. Kg1 {[%emt 0:05:00]} Qa6 {[%emt 0:00:34]} 38. Kf2 {[%emt 0:02:33]} Rc8 {[%emt 0:03:32]} 39. Qb3 {[%emt 0:02:25]} Rb8 {[%emt 0:02:10]} 40. Qc2 {[%emt 0:00:28]} Rxb1 {[%emt 0:01:26]} 41. Qxb1 {[%emt 0:00:05]} Qb6 {[%emt 0:00:10]} 42. Qxb6 {[%emt 0:00:47]} Nxb6 {[%emt 0:00:01]} 43. Bc3 {[%emt 0:00:07]} Nxa4 {[%emt 0:00:07]} 44. Bxa5 {[%emt 0:00:25]} c5 {[%emt 0:00:07]} 45. dxc5 {[%emt 0:02:55]} Nxc5 {[%emt 0:00:02]} 46. Ke2 {[%emt 0:03:23]} h5 {[%emt 0:00:09]} 47. Bb4 {[%emt 0:00:46]} Ne4 {[%emt 0:00:14]} 48. Be1 {[%emt 0:00:23]} Kf8 {[%emt 0:00:05]} 49. Kd3 {[%emt 0:01:03]} Ke7 {[%emt 0:00:07]} 50. Kd4 {[%emt 0:01:38]} Kd7 {[%emt 0:00:06]} 51. Kd3 {[%emt 0:01:37]} Kc6 {[%emt 0:00:07]} 52. Kc2 {[%emt 0:00:36]} Kb5 {[%emt 0:00:29]} 53. Kd3 {[%emt 0:01:04]} Kc5 {[%emt 0:00:05]} 0-1

[Event "Centenario Panaderia Pulido 2023"]
[Site "San Mateo Gran Canaria"]
[Date "2023.12.06"]
[Round "4.12"]
[White "Gonzalez Martinez, Miguel Angel"]
[Black "Cruz Pino, Adrian"]
[Result "1-0"]
[ECO "C00"]
[WhiteElo "2158"]
[BlackElo "2048"]
[Annotator "RC"]
[PlyCount "55"]
[EventDate "2023.12.04"]
[EventType "swiss"]
[EventCountry "ESP"]
[SourceTitle "playchess.com"]
[Source "ChessBase"]
[SourceQuality "1"]
[TimeControl "5400+30"]

1. e4 {[%emt 1:31:00]} e6 {[%emt 0:04:05]} 2. Qe2 {[%emt 0:00:00]} b6 {[%emt 0:00:35]} 3. g3 {[%emt 0:00:00]} c5 {[%emt 0:00:59]} 4. Bg2 {[%emt 0:00:00]} Nc6 {[%emt 0:00:13]} 5. c3 {[%emt 0:00:00]} Qc7 {[%emt 0:01:55]} 6. d3 {[%emt 0:00:00]} Ba6 {[%emt 0:01:08]} 7. Na3 {[%emt 0:00:00]} Ne5 {[%emt 0:01:39]} 8. Bf4 {[%emt 0:00:00]} d6 {[%emt 0:03:21]} 9. c4 {[%emt 0:00:00]} Ne7 {[%emt 0:00:28]} 10. Nf3 {[%emt 0:00:00]} N7c6 {[%emt 0:00:20]} 11. Nc2 {[%emt 0:00:00]} b5 {[%emt 0:01:56]} 12. b3 {[%emt 0:00:00]} Be7 {[%emt 0:00:34]} 13. O-O {[%emt 0:00:00]} Bf6 {[%emt 0:04:10]} 14. Rab1 {[%emt 0:00:00]} bxc4 {[%emt 0:00:19]} 15. dxc4 {[%emt 0:00:00]} O-O {[%emt 0:00:18]} 16. Rfd1 {[%emt 0:00:00]} Rfd8 {[%emt 0:00:07]} 17. Nxe5 {[%emt 0:00:00]} dxe5 {[%emt 0:03:02]} 18. Be3 {[%emt 0:00:00]} Nd4 {[%emt 0:00:25]} 19. Bxd4 {[%emt 0:00:00]} exd4 {[%emt 0:00:49]} 20. e5 {[%emt 0:00:00]} Bxe5 {[%emt 0:00:05]} 21. Bxa8 {[%emt 0:10:00]} Rxa8 {[%emt 1:14:32]} 22. b4 {[%emt 0:00:00]} Bf6 {[%emt 0:00:00]} 23. bxc5 {[%emt 0:00:00]} Qxc5 {[%emt 0:00:00]} 24. Qe4 {[%emt 0:00:00]} Rd8 {[%emt 0:00:00]} 25. Nxd4 {[%emt 0:00:00]} Qxc4 {[%emt 0:00:00]} 26. Qc2 {[%emt 0:00:00]} Bxd4 {[%emt 0:00:00]} 27. Qxc4 {[%emt 0:00:00]} Bxc4 {[%emt 0:00:00]} 28. Rxd4 {[%emt 0:00:00]} 1-0

[Event "Centenario Panaderia Pulido 2023"]
[Site "San Mateo Gran Canaria"]
[Date "2023.12.06"]
[Round "4.13"]
[White "Camino Carrio, Nicanor"]
[Black "Quiceno Ramirez, Edwin Alejandro"]
[Result "1-0"]
[ECO "B55"]
[WhiteElo "1948"]
[BlackElo "1777"]
[Annotator "RC"]
[PlyCount "49"]
[EventDate "2023.12.04"]
[EventType "swiss"]
[EventCountry "ESP"]
[SourceTitle "playchess.com"]
[Source "ChessBase"]
[SourceQuality "1"]
[TimeControl "5400+30"]

1. e4 {[%emt 0:00:05]} c5 {[%emt 0:01:30]} 2. Nf3 {[%emt 0:00:14]} d6 {[%emt 0:00:06]} 3. d4 {[%emt 0:00:23]} cxd4 {[%emt 0:00:09]} 4. Nxd4 {[%emt 0:00:06]} Nf6 {[%emt 0:00:03]} 5. Bd3 {[%emt 0:00:36]} a6 {[%emt 0:01:28]} 6. c4 {[%emt 0:02:14]} g6 {[%emt 0:00:33]} 7. O-O {[%emt 0:00:43]} Bg7 {[%emt 0:00:08]} 8. Nc3 {[%emt 0:02:02]} O-O {[%emt 0:00:32]} 9. Be2 {[%emt 0:00:17]} Bd7 {[%emt 0:01:45]} 10. Be3 {[%emt 0:00:47]} Nc6 {[%emt 0:00:07]} 11. Qd2 {[%emt 0:01:37]} Nxd4 {[%emt 0:03:03]} 12. Bxd4 {[%emt 0:00:07]} Bc6 {[%emt 0:00:06]} 13. f3 {[%emt 0:00:09]} Nd7 {[%emt 0:00:29]} 14. Bxg7 {[%emt 0:04:28]} Kxg7 {[%emt 0:00:06]} 15. Kh1 {[%emt 0:00:05]} Qa5 {[%emt 0:00:57]} 16. f4 {[%emt 0:01:34]} b5 {[%emt 0:04:20]} 17. Qd4+ {[%emt 0:02:43]} f6 {[%emt 0:00:26]} 18. Nd5 {[%emt 0:02:06]} Rf7 {[%emt 0:03:52]} 19. b4 {[%emt 0:01:31]} Qa4 {[%emt 0:08:22]} 20. Bd1 {[%emt 0:00:53]} Qa3 {[%emt 0:02:33]} 21. Rf3 {[%emt 0:00:12]} e5 {[%emt 0:00:38]} 22. Qd2 {[%emt 0:00:42]} Qxf3 {[%emt 0:01:44]} 23. Bxf3 {[%emt 0:00:28]} bxc4 {[%emt 0:00:16]} 24. Nc7 {[%emt 0:00:25]} Rd8 {[%emt 0:01:32]} 25. Ne6+ {[%emt 0:11:57]} 1-0

[Event "Centenario Panaderia Pulido 2023"]
[Site "San Mateo Gran Canaria"]
[Date "2023.12.06"]
[Round "4.14"]
[White "Garbezza, Davide"]
[Black "Mukhi Talreja, Ishita Tina"]
[Result "1-0"]
[ECO "E64"]
[WhiteElo "1860"]
[BlackElo "1575"]
[Annotator "NA COMBH"]
[PlyCount "87"]
[EventDate "2023.12.04"]
[EventType "swiss"]
[EventCountry "ESP"]
[SourceTitle "playchess.com"]
[Source "ChessBase"]
[SourceQuality "1"]
[TimeControl "5400+30"]

1. d4 {[%emt 0:03:43]} c5 {[%emt 0:02:19]} 2. d5 {[%emt 0:00:28]} d6 {[%emt 0:02:50]} 3. c4 {[%emt 0:00:49]} Nf6 {[%emt 0:02:24]} 4. Nc3 {[%emt 0:00:33]} g6 {[%emt 0:01:42]} 5. Nf3 {[%emt 0:01:35]} Bg7 {[%emt 0:01:23]} 6. g3 {[%emt 0:01:37]} O-O {[%emt 0:02:48]} 7. Bg2 {[%emt 0:00:18]} Bf5 {[%emt 0:10:21]} 8. Nd2 {[%emt 0:02:40]} Qc8 {[%emt 0:03:08]} 9. O-O {[%emt 0:01:33]} Bh3 {[%emt 0:02:20]} 10. e4 {[%emt 0:01:10]} Bxg2 {[%emt 0:02:23]} 11. Kxg2 {[%emt 0:00:02]} Ng4 {[%emt 0:07:12]} 12. h3 {[%emt 0:04:31]} Ne5 {[%emt 0:01:33]} 13. Qe2 {[%emt 0:01:30]} f5 {[%emt 0:05:31]} 14. f4 {[%emt 0:05:11]} Nf7 {[%emt 0:04:19]} 15. Nf3 {[%emt 0:06:54]} e5 {[%emt 0:07:40]} 16. fxe5 {[%emt 0:10:49]} Nxe5 {[%emt 0:03:07]} 17. Ng5 {[%emt 0:01:54]} Re8 {[%emt 0:10:02]} 18. exf5 {[%emt 0:05:00]} gxf5 {[%emt 0:02:56]} 19. Qh5 {[%emt 0:08:16]} h6 {[%emt 0:05:12]} 20. Ne6 {[%emt 0:00:53]} Rxe6 {[%emt 0:02:41]} 21. dxe6 {[%emt 0:00:05]} Qxe6 {[%emt 0:00:25]} 22. Rxf5 {[%emt 0:06:25]} Nxc4 {[%emt 0:01:20]} 23. Bxh6 {[%emt 0:15:07]} Bxh6 {[%emt 0:02:53]} 24. Qg4+ {[%emt 0:06:52]} Kh7 {[%emt 0:01:42]} 25. Re1 {[%emt 0:01:26]} Ne5 {[%emt 0:08:22]} 26. Qe4 {[%emt 0:00:48]} Kg8 {[%emt 0:06:20]} 27. Nd5 {[%emt 0:00:55]} Nbd7 {[%emt 0:00:32]} 28. Nc7 {[%emt 0:01:58]} Qxa2 {[%emt 0:00:34]} 29. Nxa8 {[%emt 0:01:21]} Qxb2+ {[%emt 0:00:25]} 30. Rf2 {[%emt 0:00:27]} Qb3 {[%emt 0:00:30]} 31. Nc7 {[%emt 0:01:21]} a5 {[%emt 0:00:32]} 32. Nd5 {[%emt 0:01:30]} Qd3 {[%emt 0:00:26]} 33. Ne7+ {[%emt 0:04:23]} Kh8 {[%emt 0:00:25]} 34. Qh4 {[%emt 0:00:24]} Qh7 {[%emt 0:00:40]} 35. Nf5 {[%emt 0:00:41]} Bg7 {[%emt 0:00:32]} 36. Qe4 {[%emt 0:03:25]} Bh6 {[%emt 0:00:28]} 37. Qxb7 {[%emt 0:00:46]} Bf8 {[%emt 0:00:28]} 38. Re4 {[%emt 0:00:49]} Kg8 {[%emt 0:00:30]} 39. Qd5+ {[%emt 0:00:34]} Nf7 {[%emt 0:00:30]} 40. Rg4+ {[%emt 0:00:10]} Kh8 {[%emt 0:00:27]} 41. Rh4 {[%emt 0:00:21]} Nh6 {[%emt 0:00:36]} 42. Nxh6 {[%emt 0:00:36]} Bxh6 {[%emt 0:00:14]} 43. Qxd6 {[%emt 0:00:13]} c4 {[%emt 0:00:47]} 44. Rxh6 {[%emt 0:02:27]} 1-0

[Event "Centenario Panaderia Pulido 2023"]
[Site "San Mateo Gran Canaria"]
[Date "2023.12.06"]
[Round "4.15"]
[White "Ramirez Maillo, Juan Adonay"]
[Black "Quevedo Olivares, Carlos Tomas"]
[Result "1-0"]
[ECO "B07"]
[WhiteElo "1857"]
[BlackElo "1555"]
[Annotator "NA COMBH"]
[PlyCount "73"]
[EventDate "2023.12.04"]
[EventType "swiss"]
[EventCountry "ESP"]
[SourceTitle "playchess.com"]
[Source "ChessBase"]
[SourceQuality "1"]
[TimeControl "5400+30"]

1. e4 {[%emt 0:00:41]} g6 {[%emt 0:00:05]} 2. d4 {[%emt 0:00:06]} Bg7 {[%emt 1:31:25]} 3. Nc3 {[%emt 1:31:13]} d6 {[%emt 0:00:00]} 4. Be3 {[%emt 0:00:30]} Nf6 {[%emt 0:01:00]} 5. f3 {[%emt 0:00:30]} c6 {[%emt 0:00:30]} 6. a4 {[%emt 0:00:30]} O-O {[%emt 0:00:00]} 7. Qd2 {[%emt 0:00:00]} e5 {[%emt 0:00:00]} 8. dxe5 {[%emt 0:00:00]} dxe5 {[%emt 0:00:00]} 9. O-O-O {[%emt 0:00:00]} Qxd2+ {[%emt 0:00:00]} 10. Rxd2 {[%emt 0:00:00]} Be6 {[%emt 0:00:00]} 11. g3 {[%emt 0:00:00]} a5 {[%emt 0:00:00]} 12. Bh3 {[%emt 0:00:00]} Bxh3 {[%emt 0:00:00]} 13. Nxh3 {[%emt 0:00:00]} Na6 {[%emt 0:00:00]} 14. Bb6 {[%emt 0:00:00]} Nb4 {[%emt 0:00:00]} 15. Kb1 {[%emt 0:00:00]} Bh6 {[%emt 0:00:00]} 16. Rd6 {[%emt 0:00:00]} Ra6 {[%emt 0:00:00]} 17. Bd8 {[%emt 0:00:00]} Ne8 {[%emt 0:00:00]} 18. Rd7 {[%emt 0:00:00]} Ng7 {[%emt 0:00:00]} 19. Bf6 {[%emt 0:00:00]} Re8 {[%emt 0:00:00]} 20. g4 {[%emt 0:00:00]} Ne6 {[%emt 0:00:00]} 21. Rhd1 Nc5 {[%emt 0:08:00]} 22. Rd8 {[%emt 0:00:00]} Ra8 {[%emt 0:00:00]} 23. Rxa8 Rxa8 {[%emt 0:00:00]} 24. Bxe5 {[%emt 0:00:00]} Ne6 {[%emt 0:01:30]} 25. Rd7 {[%emt 0:00:00]} Re8 {[%emt 0:00:00]} 26. Bf6 b6 {[%emt 0:00:00]} 27. g5 Bf8 {[%emt 0:00:00]} 28. Nf2 {[%emt 0:00:00]} Bc5 {[%emt 0:00:00]} 29. Ng4 Kf8 {[%emt 0:02:30]} 30. Nh6 {[%emt 0:00:00]} Be7 {[%emt 0:00:30]} 31. Rb7 {[%emt 0:12:30]} Nc5 {[%emt 0:00:00]} 32. Bxe7+ {[%emt 0:00:00]} Rxe7 {[%emt 0:00:00]} 33. Rb8+ {[%emt 0:00:00]} Re8 {[%emt 0:00:00]} 34. Rxb6 {[%emt 0:00:00]} Rd8 {[%emt 0:00:00]} 35. Kc1 {[%emt 0:00:00]} Kg7 {[%emt 0:00:00]} 36. Ng4 {[%emt 0:00:00]} Kf8 {[%emt 0:00:00]} 37. b3 {[%emt 0:00:00]} 1-0

[Event "Centenario Panaderia Pulido 2023"]
[Site "San Mateo Gran Canaria"]
[Date "2023.12.06"]
[Round "5.1"]
[White "Strikovic, Aleksa"]
[Black "Korneev, Oleg"]
[Result "1/2-1/2"]
[ECO "E29"]
[WhiteElo "2455"]
[BlackElo "2470"]
[Annotator "RC"]
[PlyCount "21"]
[EventDate "2023.12.04"]
[EventType "swiss"]
[EventCountry "ESP"]
[SourceTitle "playchess.com"]
[Source "ChessBase"]
[SourceQuality "1"]
[TimeControl "5400+30"]

1. d4 {[%emt 0:01:30]} Nf6 {[%emt 0:00:19]} 2. c4 {[%emt 0:00:08]} e6 {[%emt 0:00:09]} 3. Nc3 {[%emt 0:00:08]} Bb4 {[%emt 0:00:05]} 4. e3 {[%emt 0:00:06]} c5 {[%emt 0:00:07]} 5. a3 {[%emt 0:00:06]} Bxc3+ {[%emt 0:00:04]} 6. bxc3 {[%emt 0:00:05]} O-O {[%emt 0:00:24]} 7. Bd3 {[%emt 0:00:04]} d6 {[%emt 0:00:05]} 8. Nf3 {[%emt 0:00:06]} Nc6 {[%emt 0:00:03]} 9. O-O {[%emt 0:00:08]} e5 {[%emt 0:00:03]} 10. d5 {[%emt 0:00:13]} Ne7 {[%emt 0:00:06]} 11. e4 {[%emt 0:01:13]} 1/2-1/2

[Event "Centenario Panaderia Pulido 2023"]
[Site "San Mateo Gran Canaria"]
[Date "2023.12.06"]
[Round "5.2"]
[White "Gimenez Menchon, Cesar"]
[Black "Doluhanova, Evgeniya"]
[Result "1/2-1/2"]
[ECO "C46"]
[WhiteElo "2088"]
[BlackElo "2177"]
[Annotator "RC"]
[PlyCount "117"]
[EventDate "2023.12.04"]
[EventType "swiss"]
[EventCountry "ESP"]
[SourceTitle "playchess.com"]
[Source "ChessBase"]
[SourceQuality "1"]
[TimeControl "5400+30"]

1. e4 e5 {[%emt 0:02:49]} 2. Nf3 {[%emt 0:00:06]} Nc6 {[%emt 0:00:05]} 3. Nc3 {[%emt 0:00:11]} g6 {[%emt 0:02:08]} 4. d4 {[%emt 0:00:39]} exd4 {[%emt 0:00:07]} 5. Nxd4 {[%emt 0:00:05]} Bg7 {[%emt 0:00:04]} 6. Nxc6 {[%emt 0:00:29]} dxc6 {[%emt 0:00:32]} 7. Qxd8+ {[%emt 0:02:10]} Kxd8 {[%emt 0:00:18]} 8. Bc4 {[%emt 0:01:47]} Be6 {[%emt 0:03:19]} 9. Bxe6 {[%emt 0:01:40]} fxe6 {[%emt 0:00:05]} 10. Bg5+ {[%emt 0:00:52]} Bf6 {[%emt 0:02:11]} 11. h4 {[%emt 0:06:14]} h6 {[%emt 0:01:47]} 12. O-O-O+ {[%emt 0:00:50]} Ke8 {[%emt 0:01:17]} 13. Bf4 {[%emt 0:03:03]} e5 {[%emt 0:04:37]} 14. Bg3 {[%emt 0:01:56]} Rh7 {[%emt 0:02:06]} 15. h5 {[%emt 0:01:36]} g5 {[%emt 0:01:16]} 16. Rd3 {[%emt 0:00:41]} Rd7 {[%emt 0:00:41]} 17. Rf3 {[%emt 0:06:26]} Ke7 {[%emt 0:08:07]} 18. Nd1 {[%emt 0:02:09]} Rd4 {[%emt 0:10:55]} 19. Re1 {[%emt 0:09:22]} Ke6 {[%emt 0:00:21]} 20. c3 {[%emt 0:04:49]} Ra4 {[%emt 0:00:24]} 21. Kb1 {[%emt 0:11:37]} Rd8 {[%emt 0:08:27]} 22. b3 {[%emt 0:00:14]} Ra6 {[%emt 0:00:22]} 23. Ne3 {[%emt 0:03:48]} b5 {[%emt 0:04:40]} 24. Re2 {[%emt 0:11:16]} Ne7 {[%emt 0:00:32]} 25. Rxf6+ {[%emt 0:02:41]} Kxf6 {[%emt 0:00:12]} 26. Ng4+ {[%emt 0:00:06]} Ke6 {[%emt 0:00:37]} 27. Bxe5 {[%emt 0:00:53]} c5 {[%emt 0:02:38]} 28. Kb2 {[%emt 0:01:10]} c4 {[%emt 0:08:57]} 29. Bxc7 {[%emt 0:04:51]} cxb3 {[%emt 0:03:23]} 30. axb3 {[%emt 0:03:20]} Rd1 {[%emt 0:01:34]} 31. Ne3 {[%emt 0:00:43]} Rda1 {[%emt 0:01:36]} 32. Kc2 {[%emt 0:01:36]} Rc6 {[%emt 0:07:14]} 33. Kb2 {[%emt 0:00:41]} Rca6 {[%emt 0:00:06]} 34. Kc2 {[%emt 0:00:08]} R6a3 {[%emt 0:07:50]} 35. Nd1 {[%emt 0:02:20]} b4 {[%emt 0:00:57]} 36. Rd2 {[%emt 0:00:44]} R3a2+ {[%emt 0:01:02]} 37. Nb2 {[%emt 0:01:08]} bxc3 {[%emt 0:00:39]} 38. Kxc3 {[%emt 0:00:54]} Rc1+ {[%emt 0:00:57]} 39. Rc2 {[%emt 0:00:05]} Rxc2+ {[%emt 0:00:22]} 40. Kxc2 {[%emt 0:00:02]} Nc6 {[%emt 0:03:03]} 41. Kc3 {[%emt 0:01:01]} Nd4 {[%emt 0:00:46]} 42. Kxd4 {[%emt 0:02:18]} Rxb2 {[%emt 0:00:05]} 43. f4 {[%emt 0:00:30]} gxf4 {[%emt 0:11:39]} 44. Bxf4 {[%emt 0:00:18]} Rxg2 {[%emt 0:00:09]} 45. Kc3 {[%emt 0:06:18]} Rg4 {[%emt 0:00:33]} 46. Bxh6 {[%emt 0:00:04]} Rxe4 {[%emt 0:00:45]} 47. Bg7 {[%emt 0:01:35]} Kd5 {[%emt 0:00:31]} 48. h6 {[%emt 0:00:15]} Rh4 {[%emt 0:00:05]} 49. Bf8 {[%emt 0:01:47]} a5 {[%emt 0:00:28]} 50. Kb2 {[%emt 0:01:04]} Kc6 {[%emt 0:00:15]} 51. Kc2 {[%emt 0:01:31]} Rh2+ {[%emt 0:00:40]} 52. Kc3 {[%emt 0:00:33]} Kb5 {[%emt 0:00:05]} 53. Bg7 {[%emt 0:00:31]} Rh4 {[%emt 0:00:24]} 54. Bf8 {[%emt 0:00:30]} Rh3+ {[%emt 0:00:37]} 55. Kc2 {[%emt 0:00:07]} Rf3 {[%emt 0:00:22]} 56. Bg7 {[%emt 0:00:24]} Rf2+ {[%emt 0:01:15]} 57. Kc3 {[%emt 0:00:06]} Rh2 {[%emt 0:00:13]} 58. Bf8 {[%emt 0:00:13]} Re2 {[%emt 0:01:11]} 59. Bg7 {[%emt 0:00:21]} 1/2-1/2

[Event "Centenario Panaderia Pulido 2023"]
[Site "San Mateo Gran Canaria"]
[Date "2023.12.06"]
[Round "5.3"]
[White "Kurajica, Bojan"]
[Black "Uzcategui Rodriguez, Alejandro"]
[Result "1/2-1/2"]
[ECO "A49"]
[WhiteElo "2446"]
[BlackElo "2235"]
[Annotator "ChessBase"]
[PlyCount "84"]
[EventDate "2023.12.04"]
[EventType "swiss"]
[EventCountry "ESP"]
[SourceTitle "playchess.com"]
[Source "ChessBase"]
[SourceQuality "1"]
[TimeControl "5400+30"]

1. Nf3 {[%emt 0:00:03]} Nf6 {[%emt 0:00:04]} 2. d4 {[%emt 0:00:04]} g6 {[%emt 0:00:08]} 3. g3 {[%emt 0:00:15]} Bg7 {[%emt 0:00:05]} 4. Bg2 {[%emt 0:00:04]} O-O {[%emt 0:00:09]} 5. O-O {[%emt 0:00:06]} d6 {[%emt 0:00:03]} 6. Re1 {[%emt 0:00:41]} c5 {[%emt 0:00:44]} 7. e4 {[%emt 0:00:26]} cxd4 {[%emt 0:00:59]} 8. Nxd4 {[%emt 0:00:07]} Nc6 {[%emt 0:02:37]} 9. Nxc6 {[%emt 0:00:56]} bxc6 {[%emt 0:00:02]} 10. e5 {[%emt 0:00:10]} dxe5 {[%emt 0:00:04]} 11. Qxd8 {[%emt 0:03:12]} Rxd8 {[%emt 0:00:42]} 12. Bxc6 {[%emt 0:00:03]} Rb8 {[%emt 0:00:08]} 13. Bg2 {[%emt 0:17:02]} Bf5 {[%emt 0:02:51]} 14. Na3 {[%emt 0:00:08]} Nd5 {[%emt 0:01:12]} 15. c3 {[%emt 0:01:39]} Bd3 {[%emt 0:05:01]} 16. Be4 {[%emt 0:15:12]} Nb6 {[%emt 0:14:02]} 17. Bxd3 {[%emt 0:04:33]} Rxd3 {[%emt 0:00:43]} 18. Be3 {[%emt 0:00:07]} Na4 {[%emt 0:05:21]} 19. Bc1 {[%emt 0:06:20]} f5 {[%emt 0:02:40]} 20. Kg2 {[%emt 0:06:46]} e4 {[%emt 0:02:54]} 21. Rb1 {[%emt 0:00:29]} e6 {[%emt 0:02:56]} 22. Re2 {[%emt 0:01:14]} Bf8 {[%emt 0:03:17]} 23. Bf4 {[%emt 0:02:00]} Rb7 {[%emt 0:00:24]} 24. Ree1 {[%emt 0:01:54]} Rxb2 {[%emt 0:06:13]} 25. Rxb2 {[%emt 0:01:17]} Nxb2 {[%emt 0:00:04]} 26. Nb5 {[%emt 0:00:16]} Bc5 {[%emt 0:01:09]} 27. Rb1 {[%emt 0:02:37]} Nd1 {[%emt 0:49:28]} 28. Nd4 {[%emt 0:00:57]} Bb6 {[%emt 0:00:00]} 29. Nxe6 {[%emt 0:00:06]} Nxc3 {[%emt 0:00:00]} 30. Rc1 {[%emt 0:05:42]} e3 {[%emt 0:00:00]} 31. fxe3 {[%emt 0:06:24]} Bxe3 {[%emt 0:00:00]} 32. Rc2 {[%emt 0:04:26]} Bxf4 {[%emt 0:00:00]} 33. Nxf4 {[%emt 0:00:18]} Re3 {[%emt 0:00:00]} 34. Kf1 {[%emt 0:04:19]} Kf7 {[%emt 0:00:00]} 35. Ng2 {[%emt 0:01:02]} Rf3+ {[%emt 0:00:00]} 36. Ke1 {[%emt 0:01:12]} Nd5 {[%emt 0:00:00]} 37. Rc5 {[%emt 0:00:52]} Ke6 {[%emt 0:00:00]} 38. Ra5 {[%emt 0:00:11]} Rc3 {[%emt 0:00:00]} 39. Rxa7 {[%emt 0:00:36]} Rc2 {[%emt 0:00:00]} 40. Kf1 {[%emt 0:00:21]} Rc1+ {[%emt 0:00:00]} 41. Ke2 {[%emt 0:01:39]} Rc2+ {[%emt 0:00:00]} 42. Kf1 {[%emt 0:00:04]} Rc1+ {[%emt 0:00:00]} 1/2-1/2